bitfinex-derivatives/quotes_SOLF0:USTF0_20250415
["timestamp","ask_amount","ask_price","bid_price","bid_amount"]
[1744723336889,0.05716516,132.46,132.43,7.60596729]
[1744723337500,7.60746516,132.46,132.43,7.60596729]
[1744723337700,7.60746516,132.46,132.43,0.05436729]
[1744723338704,7.5506,132.45,132.43,0.05436729]
[1744723339101,0.05716516,132.46,132.43,0.05436729]
[1744723339604,7.60766516,132.46,132.43,0.05436729]
[1744723339806,0.05716516,132.46,132.43,0.05436729]
[1744723340605,7.60716516,132.46,132.43,7.60576729]
[1744723340804,0.05716516,132.46,132.43,7.60576729]
[1744723342606,7.60726516,132.46,132.43,7.60576729]
[1744723343406,0.05716516,132.46,132.44,7.5511]
[1744723344104,0.05716516,132.46,132.43,7.60586729]
[1744723345007,0.05716516,132.46,132.44,7.5509]
[1744723345404,0.05716516,132.46,132.43,7.60576729]
[1744723345708,0.05716516,132.46,132.43,0.05436729]
[1744723345908,0.05716516,132.46,132.44,7.5507]
[1744723348010,0.05716516,132.46,132.45,7.5506]
[1744723352812,12.91875287,132.46,132.43,28.13436729]
[1744723353010,12.86158771,132.44,132.43,0.05436729]
[1744723354115,20.41248771,132.45,132.43,7.60606729]
[1744723354414,20.41248771,132.45,132.43,0.05436729]
[1744723355114,7.5509,132.45,132.43,0.05436729]
[1744723355616,7.5509,132.45,132.43,7.60596729]
[1744723355916,7.60746516,132.46,132.41,28.08]
[1744723356107,20.10606324,132.47,132.41,28.08]
[1744723356314,20.10606324,132.47,132.42,7.552]
[1744723356610,7.5516,132.44,132.41,28.08]
[1744723356920,7.5523,132.42,132.41,0.05027109]
[1744723357315,0.05122149,132.44,132.41,0.05027109]
[1744723358218,7.5523,132.42,132.41,0.05027109]
[1744723358418,0.05122149,132.44,132.41,0.05027109]
[1744723358820,7.5523,132.42,132.41,0.05027109]
[1744723362123,0.05122149,132.44,132.41,0.05027109]
[1744723362322,0.05122149,132.44,132.41,7.60277109]
[1744723362617,7.60262149,132.44,132.41,7.60277109]
[1744723362823,0.05122149,132.44,132.41,7.60277109]
[1744723363623,7.5518,132.43,132.41,0.05027109]
[1744723364020,7.5523,132.42,132.41,0.05027109]
[1744723364224,20.10606324,132.43,132.38,28.08]
[1744723364525,20.10606324,132.41,132.39,7.5537]
[1744723364721,48.18606324,132.45,132.35,48.18606324]
[1744723365118,48.18606324,132.45,132.37,20.10606324]
[1744723365324,0.05279549,132.41,132.39,0.0504571]
[1744723365722,0.05279549,132.41,132.4,7.5529]
[1744723372120,0.05279549,132.41,132.39,7.6043571]
[1744723372727,0.05279549,132.41,132.4,7.5534]
[1744723375134,0.05279549,132.41,132.4,20.42158854]
[1744723375630,12.86818854,132.45,132.44,7.5511]
[1744723375823,40.94818854,132.48,132.44,7.5511]
[1744723376227,7.5497,132.47,132.44,7.5511]
[1744723376427,7.5497,132.47,132.43,12.86818854]
[1744723376830,0.05339559,132.46,132.44,0.0481193]
[1744723378234,0.05339559,132.46,132.45,7.5506]
[1744723381634,0.05339559,132.46,132.45,35.6306]
[1744723382336,9.559e-05,132.46,132.45,55.72843581]
[1744723382535,30.1852,132.54,132.45,48.17783581]
[1744723382733,178.9725606,132.57,132.5,20.09783581]
[1744723382927,178.9725606,132.57,132.54,7.5452]
[1744723383633,179.02083364,132.57,132.54,7.59483862]
[1744723383837,186.56483364,132.57,132.54,7.59483862]
[1744723384339,9.67097304,132.57,132.54,7.59483862]
[1744723385246,7.59227304,132.57,132.54,7.59483862]
[1744723386141,7.59227304,132.57,132.54,0.04963862]
[1744723386639,0.04827304,132.57,132.54,0.04963862]
[1744723386834,20.09783581,132.56,132.47,28.06]
[1744723387039,20.09783581,132.5,132.44,30.1193]
[1744723387237,7.5486,132.49,132.44,30.1193]
[1744723387544,20.09783581,132.5,132.44,30.1193]
[1744723387736,27.64573581,132.5,132.46,7.60042427]
[1744723387943,0.04899935,132.48,132.46,7.60042427]
[1744723388141,0.04899935,132.48,132.46,0.05092427]
[1744723388343,0.04899935,132.48,132.47,7.5494]
[1744723388543,0.04899935,132.48,132.46,0.05092427]
[1744723388745,0.04899935,132.48,132.46,7.60052427]
[1744723389047,0.04899935,132.48,132.46,0.05092427]
[1744723389342,30.1772,132.55,132.47,28.06]
[1744723389551,2.1172,132.55,132.48,20.09783581]
[1744723389749,7.5462,132.53,132.5,7.5475]
[1744723390251,7.5472,132.51,132.48,7.5487]
[1744723390448,7.5472,132.51,132.5,0.04978632]
[1744723392848,27.64503581,132.51,132.5,0.04978632]
[1744723395149,7.5472,132.51,132.5,0.04978632]
[1744723397555,7.5489,132.48,132.47,28.06]
[1744723397858,7.5489,132.48,132.45,7.5503]
[1744723398352,7.5489,132.48,132.44,28.06]
[1744723398555,20.09783581,132.47,132.4,2.0715]
[1744723398754,20.09783581,132.45,132.38,48.15783581]
[1744723399063,0.05714671,132.43,132.42,0.0482322]
[1744723399652,7.60884671,132.43,132.42,0.0482322]
[1744723401258,0.05714671,132.43,132.42,0.0482322]
[1744723402161,0.05714671,132.43,132.42,7.6005322]
[1744723402751,48.15783581,132.49,132.42,0.0482322]
[1744723403361,7.5503,132.46,132.42,0.0482322]
[1744723403660,30.0269,132.52,132.44,20.09783581]
[1744723403863,7.5483,132.49,132.47,7.60196306]
[1744723404162,7.59641019,132.49,132.47,7.60196306]
[1744723404466,7.59641019,132.49,132.47,0.05256306]
[1744723406759,0.04811019,132.49,132.47,0.05256306]
[1744723408164,0.04811019,132.49,132.48,7.5489]
[1744723409064,0.04811019,132.49,132.47,7.60166306]
[1744723411868,0.04811019,132.49,132.48,7.5489]
[1744723414568,0.04811019,132.49,132.47,7.60176306]
[1744723414770,0.04811019,132.49,132.47,0.05256306]
[1744723415269,7.5489,132.48,132.47,0.05256306]
[1744723415666,7.59681019,132.49,132.47,0.05256306]
[1744723416368,0.04811019,132.49,132.47,0.05256306]
[1744723417171,0.04811019,132.49,132.48,7.5489]
[1744723417970,0.04811019,132.49,132.47,7.60166306]
[1744723419272,0.04811019,132.49,132.48,7.5489]
[1744723423172,7.59641019,132.49,132.47,7.60176306]
[1744723423374,0.04811019,132.49,132.47,0.05256306]
[1744723423976,20.145946,132.49,132.47,0.05256306]
[1744723424166,48.185946,132.49,132.47,0.05256306]
[1744723424469,55.725946,132.49,132.37,548.0]
[1744723424774,20.09783581,132.41,132.35,387.04]
[1744723424974,7.5536,132.4,132.37,7.5548]
[1744723425775,7.60715262,132.4,132.37,7.60825899]
[1744723425969,7.60715262,132.4,132.37,0.05345899]
[1744723425970,0.05355262,132.4,132.37,0.05345899]
[1744723426474,0.05355262,132.4,132.39,7.554]
[1744723427476,30.0408,132.47,132.42,7.5523]
[1744723427676,7.5503,132.46,132.42,7.5523]
[1744723428271,7.60580451,132.45,132.41,7.5525]
[1744723428475,0.05510451,132.45,132.43,0.05431662]
[1744723429171,7.5511,132.44,132.43,0.05431662]
[1744723429977,7.60600451,132.45,132.43,0.05431662]
[1744723436582,7.5511,132.44,132.43,0.05431662]
[1744723437272,7.5519,132.43,132.4,7.5531]
[1744723437579,20.09783581,132.44,132.35,48.15783581]
[1744723437580,20.09783581,132.42,132.35,48.15783581]
[1744723437778,20.09783581,132.42,132.38,7.5545]
[1744723438282,7.5533,132.41,132.38,7.5545]
[1744723438483,7.60238532,132.41,132.39,0.05338874]
[1744723439085,0.04908532,132.41,132.39,7.60688874]
[1744723439285,0.04908532,132.41,132.39,0.05338874]
[1744723439678,0.04908532,132.41,132.4,7.5534]
[1744723447290,0.04908532,132.41,132.39,0.05338874]
[1744723448189,7.5534,132.4,132.39,0.05338874]
[1744723448490,0.04908532,132.41,132.39,0.05338874]
[1744723449093,0.04908532,132.41,132.4,7.5534]
[1744723449284,0.04908532,132.41,132.39,0.05338874]
[1744723449783,0.04908532,132.41,132.39,7.60698874]
[1744723450191,0.04908532,132.41,132.4,7.5534]
[1744723450489,0.04908532,132.41,132.39,0.05338874]
[1744723450790,0.04908532,132.41,132.39,7.60688874]
[1744723452095,7.5534,132.4,132.39,0.05338874]
[1744723452493,20.09783581,132.4,132.33,952.61803581]
[1744723452693,20.09783581,132.38,132.33,28.06]
[1744723453191,7.5559,132.36,132.33,35.6171]
[1744723453590,7.61383946,132.36,132.33,35.66975796]
[1744723454590,0.05793946,132.36,132.34,7.5568]
[1744723456090,7.61363946,132.36,132.34,7.5568]
[1744723456295,7.61363946,132.36,132.33,35.66985796]
[1744723456495,0.05793946,132.36,132.33,28.11265796]
[1744723456695,0.05793946,132.36,132.34,7.5568]
[1744723456893,0.05793946,132.36,132.33,28.11265796]
[1744723457090,0.05793946,132.36,132.33,0.05265796]
[1744723457696,0.05793946,132.36,132.34,7.5568]
[1744723458095,0.05793946,132.36,132.33,0.05265796]
[1744723458303,7.61393946,132.36,132.33,7.60985796]
[1744723459792,0.05793946,132.36,132.33,0.05265796]
[1744723460697,0.05793946,132.36,132.33,48.21049377]
[1744723461902,0.05793946,132.36,132.35,7.5563]
[1744723466100,0.05793946,132.36,132.33,0.05265796]
[1744723466306,20.09783581,132.34,132.28,2.1326]
[1744723466501,7.5577,132.33,132.3,7.5588]
[1744723466802,20.09783581,132.34,132.28,2.1326]
[1744723467004,20.09783581,132.32,132.26,387.06]
[1744723467200,7.5599,132.29,132.26,35.6212]
[1744723467396,0.05795107,132.3,132.28,0.0501394]
[1744723467704,0.05795107,132.3,132.28,7.6100394]
[1744723468606,0.05795107,132.3,132.28,0.0501394]
[1744723468902,20.15578688,132.3,132.28,0.0501394]
[1744723469201,7.5603,132.28,132.23,28.06]
[1744723469604,48.15783581,132.3,132.23,28.06]
[1744723470008,20.09783581,132.28,132.23,28.06]
[1744723470197,20.15504832,132.28,132.25,0.05322487]
[1744723470403,27.65923581,132.26,132.25,0.05322487]
[1744723470707,20.09783581,132.26,132.17,52.18123581]
[1744723470906,7.5634,132.23,132.17,52.18123581]
[1744723471198,20.09783581,132.26,132.17,52.18123581]
[1744723471406,7.5635,132.23,132.19,7.5651]
[1744723471602,7.5635,132.23,132.21,0.0528319]
[1744723472111,7.61131954,132.24,132.21,0.0528319]
[1744723472302,0.04851954,132.24,132.21,0.0528319]
[1744723473197,7.5637,132.22,132.21,0.0528319]
[1744723474615,7.5637,132.22,132.17,28.06]
[1744723474616,7.5654,132.19,132.17,28.06]
[1744723475114,20.09783581,132.22,132.16,7.5669]
[1744723475314,7.565,132.2,132.17,7.5665]
[1744723475714,7.61819168,132.2,132.17,7.62033404]
[1744723475914,0.05319168,132.2,132.17,28.13383404]
[1744723477117,0.05319168,132.2,132.17,0.05383404]
[1744723477618,7.566,132.18,132.17,0.05383404]
[1744723478416,20.15102749,132.2,132.17,0.05383404]
[1744723478417,0.05319168,132.2,132.17,0.05383404]
[1744723478819,7.61849168,132.2,132.17,0.05383404]
[1744723479021,0.05319168,132.2,132.17,0.05383404]
[1744723479219,20.09783581,132.19,132.17,0.05383404]
[1744723479520,7.566,132.18,132.17,0.05383404]
[1744723480219,7.5669,132.17,132.14,28.08]
[1744723480421,20.09783581,132.19,132.13,7.5688]
[1744723480622,20.09783581,132.19,132.12,543.98]
[1744723480623,20.09783581,132.16,132.08,387.1]
[1744723480919,20.09783581,132.12,132.05,28.1]
[1744723481118,20.09783581,132.12,132.02,387.1]
[1744723481119,20.09783581,132.1,132.02,387.1]
[1744723481319,28.1,132.12,132.05,0.05257883]
[1744723481320,0.05706304,132.07,132.05,0.05257883]
[1744723481517,0.05641737,132.07,132.05,20.15041464]
[1744723482024,0.05641737,132.07,132.06,7.5729]
[1744723483616,7.5704,132.11,132.08,7.5716]
[1744723483820,28.1,132.13,132.06,32.0644]
[1744723484122,30.2456,132.13,132.06,7.5727]
[1744723484323,32.3374818,132.12,132.03,32.1109]
[1744723484523,7.5717,132.09,132.03,32.1109]
[1744723484729,0.05784232,132.07,132.06,7.5729]
[1744723485225,0.05784232,132.07,132.05,7.62410656]
[1744723485425,0.05784232,132.07,132.05,0.05080656]
[1744723485931,7.5729,132.06,132.05,0.05080656]
[1744723486319,7.63044232,132.07,132.05,0.05080656]
[1744723486619,0.05784232,132.07,132.05,0.05080656]
[1744723486825,7.5729,132.06,132.05,0.05080656]
[1744723487024,0.05784232,132.07,132.05,0.05080656]
[1744723487426,7.63044232,132.07,132.05,0.05080656]
[1744723487617,0.05784232,132.07,132.05,0.05080656]
[1744723487818,28.15784232,132.07,132.05,0.05080656]
[1744723488027,7.5729,132.06,132.05,0.05080656]
[1744723488419,35.73034232,132.07,132.05,0.05080656]
[1744723488725,0.05784232,132.07,132.05,0.05080656]
[1744723489422,28.15784232,132.07,132.05,0.05080656]
[1744723489627,7.5729,132.06,132.05,0.05080656]
[1744723491632,32.3374818,132.06,131.96,387.12]
[1744723491830,28.1,132.07,131.97,36.4597818]
[1744723492034,7.5738,132.05,131.97,36.4597818]
[1744723492532,7.5738,132.05,132.02,7.5751]
[1744723492732,7.62321234,132.05,132.02,7.5751]
[1744723494234,7.5741,132.04,132.01,7.5755]
[1744723494634,0.04941234,132.05,132.0,0.05720732]
[1744723494834,7.5746,132.03,132.0,7.63300732]
[1744723495035,7.5746,132.03,132.0,0.05720732]
[1744723495235,28.12,132.04,132.0,0.05720732]
[1744723495938,7.5747,132.03,132.0,7.63320732]
[1744723496135,28.12,132.04,132.0,0.05720732]
[1744723496335,7.5755,132.02,132.0,0.05720732]
[1744723496532,0.05613534,132.02,132.0,0.05720732]
[1744723497133,7.5757,132.01,132.0,0.05720732]
[1744723500035,35.6957,132.01,132.0,0.05720732]
[1744723500237,35.7,132.01,131.9,28.12]
[1744723500541,32.3374818,131.99,131.88,391.3374818]
[1744723500731,28.12,131.98,131.94,7.5797]
[1744723500928,28.12,131.98,131.9,32.3374818]
[1744723501142,28.12,131.98,131.93,7.58]
[1744723501333,7.5799,131.94,131.9,28.12]
[1744723501533,0.04876542,131.93,131.91,0.05307171]
[1744723501930,0.04876542,131.93,131.92,7.5808]
[1744723502939,7.62946542,131.93,131.91,0.05307171]
[1744723503137,0.04876542,131.93,131.91,0.05307171]
[1744723503342,0.04876542,131.93,131.92,7.5809]
[1744723503544,4.0627,132.0,131.92,32.3374818]
[1744723503844,32.3374818,132.05,132.0,7.5759]
[1744723504042,7.5744,132.04,131.96,60.4774818]
[1744723504252,28.14,132.05,131.96,60.4774818]
[1744723504541,7.5741,132.04,131.96,419.4774818]
[1744723504741,0.05800605,132.02,131.99,0.05590187]
[1744723504943,0.05800605,132.02,132.01,7.5757]
[1744723505346,28.14,132.08,131.99,28.19590187]
[1744723505542,28.14,132.08,132.04,7.5737]
[1744723505736,7.5705,132.11,132.05,28.14]
[1744723506349,176.8938606,132.13,132.08,32.3374818]
[1744723506543,2.1154,132.15,132.11,7.5699]
[1744723506740,7.5684,132.14,132.08,60.4774818]
[1744723507045,28.14,132.17,132.1,7.5702]
[1744723507342,28.14,132.17,132.08,60.4774818]
[1744723507646,0.05540588,132.14,132.11,7.62531813]
[1744723507848,0.05540588,132.14,132.11,0.05571813]
[1744723508344,0.05540588,132.14,132.13,7.5689]
[1744723508544,0.05540588,132.14,132.11,0.05571813]
[1744723508743,0.05540588,132.14,132.12,7.5691]
[1744723509050,0.05540588,132.14,132.11,0.05571813]
[1744723509442,0.05540588,132.14,132.13,7.5689]
[1744723509645,0.05540588,132.14,132.11,0.05571813]
[1744723510641,0.05540588,132.14,132.13,7.5689]
[1744723510948,0.05540588,132.14,132.11,2.03931813]
[1744723511350,0.05540588,132.14,132.11,0.05571813]
[1744723511647,7.62420588,132.14,132.11,0.05571813]
[1744723511951,0.05540588,132.14,132.11,0.05571813]
[1744723512848,7.5692,132.13,132.11,0.05571813]
[1744723513148,0.05540588,132.14,132.11,0.05571813]
[1744723513344,7.5693,132.13,132.11,0.05571813]
[1744723513852,7.62380588,132.14,132.11,0.05571813]
[1744723515652,7.5689,132.13,132.11,0.05571813]
[1744723516248,7.5694,132.12,132.11,0.05571813]
[1744723516550,0.05540588,132.14,132.11,0.05571813]
[1744723516751,7.5694,132.12,132.11,0.05571813]
[1744723516950,0.05540588,132.14,132.11,0.05571813]
[1744723517556,7.5692,132.13,132.11,0.05571813]
[1744723524556,0.05540588,132.14,132.11,0.05571813]
[1744723525059,0.05540588,132.14,132.11,29.39571813]
[1744723525457,0.05540588,132.14,132.11,31.39411813]
[1744723525659,29.34,132.19,132.12,20.20467239]
[1744723525853,29.34,132.19,132.12,22.28927239]
[1744723526056,49.54467239,132.19,132.11,31.3384]
[1744723526455,7.5675,132.16,132.13,7.5686]
[1744723526759,7.62555431,132.16,132.13,7.61674038]
[1744723527661,0.05805431,132.16,132.13,0.04814038]
[1744723528459,7.5677,132.15,132.13,0.04814038]
[1744723528961,7.5683,132.14,132.13,0.04814038]
[1744723529555,0.05805431,132.16,132.13,0.04814038]
[1744723529755,7.568,132.15,132.13,0.04814038]
[1744723530257,7.62545431,132.16,132.13,7.61664038]
[1744723531263,0.05805431,132.16,132.14,7.5682]
[1744723532365,0.05805431,132.16,132.13,0.04814038]
[1744723532760,7.5677,132.15,132.13,0.04814038]
[1744723533065,0.05805431,132.16,132.13,20.25281277]
[1744723533563,0.05805431,132.16,132.15,7.5677]
[1744723535864,0.05805431,132.16,132.13,0.04814038]
[1744723536368,0.05805431,132.16,132.14,7.568]
[1744723538168,0.05805431,132.16,132.15,7.5677]
[1744723538369,0.05805431,132.16,132.13,0.04814038]
[1744723539369,20.2627267,132.16,132.13,0.04814038]
[1744723539566,0.05805431,132.16,132.13,0.04814038]
[1744723539867,7.62545431,132.16,132.13,7.61674038]
[1744723540070,0.05805431,132.16,132.13,7.61674038]
[1744723540260,0.05805431,132.16,132.13,0.04814038]
[1744723541167,0.05805431,132.16,132.14,20.20467239]
[1744723541365,0.05805431,132.16,132.15,36.7277]
[1744723541769,0.05805431,132.16,132.15,29.16]
[1744723542566,0.05805431,132.16,132.15,36.7277]
[1744723547869,0.05805431,132.16,132.13,0.04814038]
[1744723548372,7.568,132.15,132.13,0.04814038]
[1744723549772,7.568,132.15,132.13,7.61684038]
[1744723550372,7.62545431,132.16,132.13,7.61684038]
[1744723550575,0.05805431,132.16,132.13,0.04814038]
[1744723550973,7.62555431,132.16,132.14,7.5683]
[1744723551172,0.05805431,132.16,132.14,7.5683]
[1744723551468,0.05805431,132.16,132.13,0.04814038]
[1744723551671,0.05805431,132.16,132.14,7.5683]
[1744723551873,0.05805431,132.16,132.13,0.04814038]
[1744723552875,0.05805431,132.16,132.15,7.5677]
[1744723555675,0.05805431,132.16,132.14,7.568]
[1744723556377,0.05805431,132.16,132.15,7.5677]
[1744723565980,0.05805431,132.16,132.14,7.568]
[1744723566595,20.18485791,132.15,132.13,0.04814038]
[1744723566776,26.40155791,132.15,132.13,0.04814038]
[1744723566977,26.40155791,132.15,132.07,29.14]
[1744723567283,20.18485791,132.13,132.07,29.14]
[1744723567683,7.57,132.12,132.07,29.14]
[1744723568084,0.05095905,132.11,132.08,0.05751957]
[1744723569085,0.05095905,132.11,132.08,7.62901957]
[1744723569586,0.05095905,132.11,132.08,0.05751957]
[1744723569785,7.5709,132.1,132.08,0.05751957]
[1744723570290,7.62135905,132.11,132.08,7.62921957]
[1744723570784,0.05095905,132.11,132.09,7.5711]
[1744723570989,0.05095905,132.11,132.08,0.05751957]
[1744723571390,7.62125905,132.11,132.08,7.62891957]
[1744723572090,0.05095905,132.11,132.08,0.05751957]
[1744723572789,0.05095905,132.11,132.1,7.5706]
[1744723574284,0.05095905,132.11,132.09,7.5709]
[1744723574791,0.05095905,132.11,132.08,0.05751957]
[1744723574979,0.05095905,132.11,132.1,7.5706]
[1744723575582,0.05095905,132.11,132.09,7.571]
[1744723576088,0.05095905,132.11,132.08,0.05751957]
[1744723576291,0.05095905,132.11,132.09,7.5707]
[1744723577392,0.05095905,132.11,132.1,7.5706]
[1744723578690,0.05095905,132.11,132.08,0.05751957]
[1744723578891,20.18485791,132.09,132.08,0.05751957]
[1744723579192,20.18485791,132.09,132.03,36.1142]
[1744723579394,20.18485791,132.07,132.03,36.1142]
[1744723580091,7.6285637,132.06,132.04,0.05019467]
[1744723580598,0.0553637,132.06,132.04,7.62379467]
[1744723580793,0.0553637,132.06,132.04,0.05019467]
[1744723581598,7.6282637,132.06,132.04,0.05019467]
[1744723581896,0.0553637,132.06,132.04,0.05019467]
[1744723582198,7.5734,132.05,132.04,0.05019467]
[1744723582594,0.0553637,132.06,132.04,0.05019467]
[1744723582793,7.6284637,132.06,132.04,0.05019467]
[1744723585702,7.6284637,132.06,132.04,7.62419467]
[1744723586402,7.5734,132.05,132.04,0.05019467]
[1744723587504,7.6285637,132.06,132.04,0.05019467]
[1744723589107,7.6285637,132.06,132.04,7.62409467]
[1744723590005,7.6285637,132.06,132.04,0.05019467]
[1744723590205,0.0553637,132.06,132.04,0.05019467]
[1744723590601,7.6284637,132.06,132.04,7.62409467]
[1744723591406,7.6284637,132.06,132.04,0.05019467]
[1744723591612,0.0553637,132.06,132.04,0.05019467]
[1744723591812,20.18485791,132.05,132.04,0.05019467]
[1744723592012,20.18485791,132.05,131.97,387.54]
[1744723592309,20.18485791,132.05,132.0,7.5761]
[1744723593013,0.0540288,132.04,132.01,0.05744859]
[1744723593317,0.0540288,132.04,132.02,7.5749]
[1744723593616,0.0540288,132.04,132.01,0.05744859]
[1744723593909,0.0540288,132.04,132.03,7.5746]
[1744723596813,2.88e-05,132.04,132.03,36.1346]
[1744723597007,28.56,132.12,132.03,48.74485791]
[1744723597509,7.5703,132.11,132.03,48.74485791]
[1744723598119,0.05122402,132.08,132.06,0.05688853]
[1744723598320,0.05122402,132.08,132.06,28.59688853]
[1744723598519,9.6286,132.15,132.07,20.18485791]
[1744723598720,9.6286,132.15,132.09,20.18485791]
[1744723598919,9.6286,132.15,132.09,48.72485791]
[1744723599121,9.6286,132.15,132.12,7.5691]
[1744723599519,9.68647134,132.15,132.12,7.62355398]
[1744723600422,7.5684,132.14,132.12,0.05445398]
[1744723600618,2.11847134,132.15,132.12,0.05445398]
[1744723601220,7.5689,132.13,132.12,0.05445398]
[1744723601421,2.11847134,132.15,132.12,0.05445398]
[1744723602120,7.5687,132.14,132.12,0.05445398]
[1744723602320,2.11847134,132.15,132.12,0.05445398]
[1744723604222,9.68647134,132.15,132.12,7.62365398]
[1744723605323,9.68647134,132.15,132.12,0.05445398]
[1744723605524,22.30332925,132.15,132.12,0.05445398]
[1744723606024,7.5689,132.13,132.12,0.05445398]
[1744723606725,7.5698,132.12,132.06,28.24]
[1744723607822,7.5698,132.12,132.09,7.5709]
[1744723608031,0.04770786,132.1,132.08,0.05725397]
[1744723608527,0.04770786,132.1,132.06,28.24]
[1744723608528,7.572,132.08,132.03,28.24]
[1744723609029,7.572,132.08,132.05,7.5732]
[1744723609625,0.04766937,132.08,132.07,7.5723]
[1744723610028,0.04766937,132.08,132.05,0.04994154]
[1744723610232,0.04766937,132.08,132.06,7.5726]
[1744723611230,0.04766937,132.08,132.07,7.5723]
[1744723611728,0.04766937,132.08,132.05,0.04994154]
[1744723612629,0.04766937,132.08,132.06,7.5726]
[1744723613030,0.04766937,132.08,132.05,0.04994154]
[1744723613629,0.04766937,132.08,132.07,7.5723]
[1744723613831,28.24,132.14,132.07,20.18485791]
[1744723614131,28.24,132.14,132.06,32.3683]
[1744723614630,7.5701,132.11,132.09,7.571]
[1744723614831,7.62433796,132.11,132.09,0.04784312]
[1744723615021,0.05423796,132.11,132.09,0.04784312]
[1744723615225,7.5706,132.1,132.09,0.04784312]
[1744723615731,48.47909587,132.11,132.03,32.3301]
[1744723615932,20.18485791,132.09,132.03,32.3301]
[1744723616233,7.572,132.08,132.05,7.5732]
[1744723616732,7.62558775,132.08,132.06,7.5727]
[1744723616932,0.05358775,132.08,132.05,0.05508828]
[1744723617333,0.05358775,132.08,132.07,7.5723]
[1744723622432,0.05358775,132.08,132.06,28.24]
[1744723623232,0.05358775,132.08,132.07,7.5723]
[1744723625029,20.18485791,132.15,132.07,20.18485791]
[1744723625231,1.9611,132.16,132.07,20.18485791]
[1744723625735,7.5689,132.13,132.11,7.5697]
[1744723626133,7.62517849,132.13,132.11,7.61866287]
[1744723626536,0.05627849,132.13,132.11,7.61866287]
[1744723626737,0.05627849,132.13,132.12,7.5694]
[1744723627238,28.24,132.19,132.16,7.567]
[1744723627439,28.24,132.2,132.13,20.18485791]
[1744723628441,0.04943307,132.18,132.15,0.04925604]
[1744723629341,0.04943307,132.18,132.17,7.5666]
[1744723632742,3.307e-05,132.18,132.17,27.75145791]
[1744723632942,6.2105,132.25,132.17,20.18485791]
[1744723633136,28.22,132.26,132.19,20.18485791]
[1744723633342,35.7818,132.26,132.23,7.5629]
[1744723633538,28.22,132.26,132.23,7.5629]
[1744723633840,7.5635,132.23,132.2,7.5648]
[1744723634040,20.18485791,132.24,132.18,28.22]
[1744723634241,0.05750755,132.23,132.2,0.04898027]
[1744723634936,0.05750755,132.23,132.22,7.5637]
[1744723637146,48.40485791,132.29,132.26,7.5613]
[1744723637442,48.40485791,132.29,132.21,48.38485791]
[1744723637845,28.22,132.29,132.21,48.38485791]
[1744723638040,48.40485791,132.29,132.21,48.38485791]
[1744723638236,0.04893202,132.26,132.21,48.38485791]
[1744723638441,0.04893202,132.26,132.25,7.562]
[1744723638844,28.22,132.29,132.25,7.562]
[1744723638845,7.559,132.31,132.25,48.38485791]
[1744723639146,48.38485791,132.33,132.27,7.5605]
[1744723639340,7.5594,132.3,132.27,7.5605]
[1744723639846,7.60796636,132.3,132.27,7.60840505]
[1744723640144,0.04856636,132.3,132.28,7.56]
[1744723640347,0.04856636,132.3,132.27,0.04790505]
[1744723640738,7.60776636,132.3,132.27,7.60840505]
[1744723640948,0.04856636,132.3,132.27,0.04790505]
[1744723641453,7.60766636,132.3,132.27,7.60850505]
[1744723641637,0.04856636,132.3,132.27,7.60850505]
[1744723642144,0.04856636,132.3,132.28,7.5602]
[1744723642345,0.04856636,132.3,132.27,0.04790505]
[1744723642747,0.04856636,132.3,132.29,7.5597]
[1744723643747,0.04856636,132.3,132.28,7.5601]
[1744723644249,28.2,132.37,132.29,28.2]
[1744723644448,48.38485791,132.37,132.29,48.38485791]
[1744723644754,48.38485791,132.37,132.33,7.5571]
[1744723645049,7.5568,132.35,132.29,48.38485791]
[1744723645254,28.2,132.37,132.31,20.18485791]
[1744723645551,0.04940172,132.33,132.32,28.2]
[1744723645752,35.7554,132.37,132.34,7.5567]
[1744723645951,35.80384383,132.37,132.34,7.61108677]
[1744723646151,28.24844383,132.37,132.34,0.05438677]
[1744723646451,28.24844383,132.37,132.34,7.61098677]
[1744723647253,28.24844383,132.37,132.35,7.5562]
[1744723647552,28.24844383,132.37,132.34,0.05438677]
[1744723647854,28.24844383,132.37,132.35,7.5562]
[1744723648056,0.04844383,132.37,132.35,7.5562]
[1744723648753,0.04844383,132.37,132.36,7.5557]
[1744723649354,0.04844383,132.37,132.35,7.556]
[1744723649554,0.04844383,132.37,132.34,0.05438677]
[1744723649953,0.04844383,132.37,132.36,7.5557]
[1744723650545,0.04844383,132.37,132.35,7.556]